[Event "GCT Superbet Romania 2024"]
[Site "Bucharest"]
[Date "2024.06.30"]
[Round "5.5"]
[White "Deac, Bogdan-Daniel"]
[Black "Nepomniachtchi, Ian"]
[Result "1/2-1/2"]
[ECO "E05"]
[WhiteElo "2680"]
[BlackElo "2770"]
[Annotator "TA"]
[PlyCount "218"]
[EventDate "2024.06.24"]
[EventType "tourn"]
[EventCountry "ROU"]
[SourceTitle "playchess.com"]
[Source "ChessBase"]
[SourceQuality "1"]
[TimeControl "7200+30"]

{[%evp 18,218,16,10,10,6,21,12,14,20,27,0,9,8,17,11,20,15,19,16,15,14,30,26,21,9,11,15,18,12,18,12,14,14,27,0,0,0,0,0,0,0,0,0,72,0,0,0,0,0,0,0,0,0,0,-8,-8,-8,-8,-8,-8,-67,-67,-67,-8,-8,-8,-8,-8,-26,0,-26,-26,-26,-26,-26,-26,-26,0,-26,-11,-25,-25,-26,-8,-8,-8,-8,-8,-8,-8,-8,-8,-18,-19,-20,-20,-20,-14,-53,-14,-13,0,-59,-59,-68,-68,-68,-68,-68,-68,-68,-68,-68,-68,-68,-68,-68,-68,-68,-68,-68,-68,-68,-63,-68,-68,-68,-68,-68,-61,-61,-61,-61,-61,-61,-61,-61,-61,-61,-61,-61,-61,-67,-63,-68,-61,-68,-61,-61,-61,-61,-61,-61,-54,-54,-54,-54,-54,-54,-54,-54,-49,-49,-8,-8,-8,-8,-8,-8,0,0,0,0,0,0,-8,-8,-8,-8,0,-6,0,0,0,0,0,0,0,0,0,-8,0,0,0,0,0,0,0,0,0,-8,-8]} 1. Nf3 {[%emt 0:00:03]} d5 {[%emt 0:00:34]} 2. g3 {[%emt 0:00:03]} Nf6 {[%emt 0:03:39]} 3. Bg2 {[%emt 0:00:03]} e6 {[%emt 0:00:32]} 4. O-O {[%emt 0:01:10]} Be7 {[%emt 0:00:52]} 5. c4 {[%emt 0:00:06]} O-O {[%emt 0:00:44]} 6. d4 {[%emt 0:00:05]} dxc4 {[%emt 0:00:07]} 7. Qc2 {[%emt 0:00:04]} a6 {[%emt 0:00:21]} 8. a4 {[%emt 0:00:07]} Bd7 {[%emt 0:00:08]} 9. Qxc4 {[%emt 0:05:27]} Bc6 {[%emt 0:00:12]} 10. Bg5 {[%emt 0:00:12]} Nbd7 {[%emt 0:00:12]} 11. Rd1 {[%emt 0:16:39]} h6 {[%emt 0:05:52]} 12. Bxf6 {[%emt 0:01:03]} Nxf6 {[%emt 0:00:04]} 13. Nbd2 {[%emt 0:01:59]} Qd6 {[%emt 0:04:40]} 14. Ne5 {[%emt 0:05:36]} Bxg2 {[%emt 0:09:10]} 15. Kxg2 {[%emt 0:00:04]} Rac8 {[%emt 0:01:06]} 16. Ndf3 {[%emt 0:15:01]} c5 {[%emt 0:11:43]} 17. dxc5 {[%emt 0:14:40]} Qxc5 {[%emt 0:00:42]} 18. Qxc5 {[%emt 0:00:24]} Bxc5 {[%emt 0:02:24]} 19. Nd7 {[%emt 0:00:46] Excellent horsemanship.} Rfd8 {[%emt 0:01:14]} 20. Nxc5 {[%emt 0:29:52]} Rxd1 {[%emt 0:01:44]} 21. Rxd1 {[%emt 0:00:02]} Rxc5 $11 {[%emt 0:00:10][%mdl 4096] Endgame. KRN-KRN} 22. Rd8+ {[%emt 0:00:03]} Kh7 {[%emt 0:00:06]} 23. Rf8 {[%emt 0:00:32]} Rc2 {[%emt 0:01:04][%csl LRb2,LRe2]} 24. Rxf7 {[%emt 0:09:25]} Rxe2 {[%emt 0:00:25]} 25. Rxb7 {[%emt 0:00:55]} Ne4 {[%emt 0:06:30]} 26. Nd4 {[%emt 0:03:15]} Rxf2+ {[%emt 0:00:26]} 27. Kg1 {[%emt 0:00:06]} e5 {[%emt 0:01:02]} 28. Ne6 {[%emt 0:16:56]} Kg6 {[%emt 0:00:41]} 29. Rb6 {[%emt 0:05:02] Nc5+ is the strong threat.} Rd2 {[%emt 0:07:46]} 30. Rxa6 {[%emt 0:04:34]} Kf5 {[%emt 0:01:45] [#]} (30... Rxb2 $11 31. Nc5+ Nf6) 31. Nxg7+ {[%emt 0:00:08]} (31. Rb6 $1 $16) 31... Kg4 {[%emt 0:00:07]} 32. Rb6 {[%emt 0:00:07][%cal Oa4a5]} Ng5 {[%emt 0:04:04]} 33. Kf1 {[%emt 0:01:32]} Rxh2 {[%emt 0:00:55]} 34. a5 {[%emt 0:00:44] a6 would now be deadly.} e4 {[%emt 0:00:12][%cal Oe4e3] White must now prevent ...e3!} 35. Ne6 {[%emt 0:00:41]} Nf3 {[%emt 0:01:35]} 36. Nf4 {[%emt 0:00:17]} e3 {[%emt 0:15:03]} 37. Ng2 $1 {[%emt 0:00:02]} Kxg3 {[%emt 0:02:53]} 38. Rg6+ {[%emt 0:00:17]} (38. Nxe3 $2 Rf2#) 38... Ng5 {[%emt 0:00:03]} 39. Nxe3 {[%emt 0:01:00]} (39. Ke2 $1 $11) 39... Kf3 $1 $15 {[%emt 0:00:21]} 40. Kg1 {[%emt 0:00:53] Wards off Rh1+} Rxb2 {[%emt 0:00:38]} (40... Rd2 $1 $15 41. Ng4 Rd1+ (41... Kxg4 42. Rxh6 Kf3 43. Rf6+ Kg3 44. Kf1 $11) 42. Kh2 Kxg4 43. Rxh6 Rd2+ 44. Kg1 Rxb2) 41. Nd1 {[%emt 0:00:31]} Rb1 {[%emt 0:02:06]} 42. Rd6 {[%emt 0:00:13]} Ra1 {[%emt 0:00:56]} 43. a6 {[%emt 0:00:32]} h5 {[%emt 0:00:20]} 44. Rd5 {[%emt 0:00:46]} Kf4 {[%emt 0:01:50]} 45. Kg2 {[%emt 0:00:30] Repels h4} Ra2+ {[%emt 0:00:45]} 46. Kf1 {[%emt 0:00:16]} h4 {[%emt 0:01:36][%cal Oh4h3]} 47. Nf2 {[%emt 0:00:33]} Nf3 {[%emt 0:00:10]} (47... h3 $5) 48. Rd8 {[%emt 0:00:41]} Ra1+ {[%emt 0:00:19]} 49. Rd1 {[%emt 0:00:23]} Rxa6 {[%emt 0:00:27]} 50. Rc1 {[%emt 0:00:22]} Rg6 {[%emt 0:02:29] aiming for ...Rg1+.} 51. Rc4+ {[%emt 0:00:23]} Kg3 {[%emt 0:00:15]} 52. Ne4+ {[%emt 0:00:38]} Kh2 {[%emt 0:00:58]} 53. Rc2+ {[%emt 0:00:12]} Kh3 {[%emt 0:00:10] Hoping for ...Rg1+.} 54. Rc3 {[%emt 0:00:40]} Kg4 {[%emt 0:00:05]} 55. Kf2 {[%emt 0:00:49] [#]} Rb6 $1 {[%emt 0:01:19][%cal Oh4h3]} 56. Rc4 {[%emt 0:00:33]} Ne5 {[%emt 0:00:13]} 57. Ra4 {[%emt 0:00:26]} Rb2+ {[%emt 0:00:16]} 58. Ke3 {[%emt 0:00:26]} Rb3+ {[%emt 0:00:33]} 59. Ke2 {[%emt 0:00:19]} Rb2+ {[%emt 0:01:28]} (59... Rb8 $11) 60. Ke3 {[%emt 0:00:34]} h3 {[%emt 0:03:47] Strongly threatening ...h2.} 61. Nf2+ {[%emt 0:00:05]} Kg3 {[%emt 0:00:27]} 62. Nxh3 $1 {[%emt 0:00:09]} Kxh3 {[%emt 0:00:05] KRN-KR} 63. Ke4 {[%emt 0:00:28]} Nd7 {[%emt 0:00:25]} 64. Rd4 {[%emt 0:00:21]} Nf6+ {[%emt 0:00:11]} 65. Kf5 {[%emt 0:00:15] [#]} Ng4 $1 {[%emt 0:00:05]} 66. Rd3+ {[%emt 0:00:19]} Kh4 {[%emt 0:00:02]} 67. Rd4 {[%emt 0:00:18]} Rb5+ {[%emt 0:00:06]} 68. Kf4 {[%emt 0:00:12]} Kh5 {[%emt 0:00:22]} 69. Ra4 {[%emt 0:00:25]} Nf6 {[%emt 0:00:06]} 70. Rc4 {[%emt 0:00:16]} Kg6 {[%emt 0:00:04]} 71. Rc6 {[%emt 0:00:45]} Rb4+ {[%emt 0:00:04]} 72. Ke3 {[%emt 0:00:12]} Kf5 {[%emt 0:00:07]} 73. Rc5+ {[%emt 0:00:16]} Ke6 {[%emt 0:00:01]} 74. Kd3 {[%emt 0:00:18]} Nd7 {[%emt 0:00:05]} 75. Rc8 {[%emt 0:00:11]} Ne5+ {[%emt 0:00:13]} 76. Ke3 {[%emt 0:00:09]} Nc4+ {[%emt 0:00:05]} 77. Kd3 {[%emt 0:00:11]} Kd5 {[%emt 0:00:05]} 78. Kc3 {[%emt 0:01:00]} Rb1 {[%emt 0:00:05]} 79. Rd8+ {[%emt 0:01:38]} Nd6 {[%emt 0:01:26]} 80. Rd7 {[%emt 0:00:14]} Rh1 {[%emt 0:00:05]} 81. Rd8 {[%emt 0:00:42]} Kc5 {[%emt 0:00:08]} 82. Kc2 {[%emt 0:00:38]} Rh3 {[%emt 0:00:19]} 83. Kd2 {[%emt 0:01:44]} Ne4+ {[%emt 0:00:42]} 84. Ke2 {[%emt 0:00:33]} Kc4 {[%emt 0:00:10]} 85. Rc8+ {[%emt 0:00:34]} Nc5 {[%emt 0:00:01]} 86. Kd2 {[%emt 0:00:48]} Rh7 {[%emt 0:01:08]} 87. Ke2 {[%emt 0:00:40]} Kd4 {[%emt 0:00:09]} 88. Rd8+ {[%emt 0:00:08]} Nd7 {[%emt 0:00:02]} 89. Kf2 {[%emt 0:00:43]} Ke4 {[%emt 0:00:05]} 90. Ra8 {[%emt 0:00:29]} Rh2+ {[%emt 0:00:53]} 91. Kg3 $1 {[%emt 0:00:11] The position is equal.} Rc2 {[%emt 0:00:08]} 92. Ra4+ {[%emt 0:00:50]} Kf5 {[%emt 0:00:01]} 93. Rf4+ {[%emt 0:00:23]} Ke5 {[%emt 0:00:04]} 94. Rh4 {[%emt 0:00:18]} Nf6 {[%emt 0:00:10]} 95. Kf3 {[%emt 0:00:09]} Rc3+ {[%emt 0:00:35]} 96. Ke2 {[%emt 0:00:15]} Ra3 {[%emt 0:00:20]} 97. Rb4 {[%emt 0:00:24]} Nd5 {[%emt 0:00:14]} 98. Rb8 {[%emt 0:00:12]} Nc3+ {[%emt 0:00:05]} 99. Kf2 {[%emt 0:00:21]} Kd4 {[%emt 0:00:28]} 100. Rd8+ {[%emt 0:00:18]} Nd5 {[%emt 0:00:02]} 101. Rd6 {[%emt 0:00:47]} Ke4 {[%emt 0:00:11]} 102. Re6+ {[%emt 0:00:08]} Kf4 {[%emt 0:00:01]} 103. Re8 {[%emt 0:00:14]} Ra2+ {[%emt 0:00:06]} 104. Re2 {[%emt 0:00:05]} Ra8 {[%emt 0:00:02]} 105. Re6 {[%emt 0:00:28] Inhibits Ra6.} ({Much worse is} 105. Ke1 Kg3 $15) 105... Rd8 {[%emt 0:00:32]} 106. Rh6 {[%emt 0:00:24]} Ne3 {[%emt 0:00:23] ( -> ...Ng4+)} 107. Ke2 {[%emt 0:00:17]} Nf5 {[%emt 0:00:08]} 108. Rf6 {[%emt 0:00:13]} Rd6 {[%emt 0:00:05]} 109. Rxd6 {[%emt 0:00:04]} Nxd6 {[%emt 0:00:02] Weighted Error Value: White=0.07 (flawless) /Black=0.07 (flawless) .  Mistake:       	White=2     	Black=3      Inaccurate:     	White=4     	Black=4      OK:         	White=43    	Black=46     Best:        	White=3     	Black=6      Strong:       	White=3     	Black=1} 1/2-1/2

[Event "GCT Superbet Romania 2024"]
[Site "Bucharest"]
[Date "2024.07.02"]
[Round "6.1"]
[White "Firouzja, Alireza"]
[Black "So, Wesley"]
[Result "1-0"]
[ECO "E24"]
[WhiteElo "2737"]
[BlackElo "2757"]
[Annotator "TA"]
[PlyCount "61"]
[EventDate "2024.06.24"]
[EventType "tourn"]
[EventCountry "ROU"]
[SourceTitle "playchess.com"]
[Source "ChessBase"]
[SourceQuality "1"]
[TimeControl "7200+30"]

{[%evp 10,61,4,-12,-14,-14,-26,-22,-16,-35,-13,-21,58,21,34,20,31,26,79,54,55,58,84,79,117,123,116,120,118,132,151,161,222,213,219,230,224,229,231,241,237,238,382,387,363,360,604,604,597,597,775,557,492,538]} 1. d4 {[%emt 0:00:03]} Nf6 {[%emt 0:00:20]} 2. c4 {[%emt 0:00:06]} e6 {[%emt 0:00:02]} 3. Nc3 {[%emt 0:00:06]} Bb4 {[%emt 0:00:04]} 4. a3 {[%emt 0:00:21]} Bxc3+ {[%emt 0:00:14]} 5. bxc3 {[%emt 0:00:06][%cal Bb2c3,Bc3d4,Bd4c5][%mdl 32]} b6 {[%emt 0:00:02]} 6. f3 {[%emt 0:00:30]} Nc6 {[%emt 0:00:20]} 7. e4 {[%emt 0:00:13]} Na5 {[%emt 0:00:41]} 8. c5 {[%emt 0:00:14]} bxc5 {[%emt 0:00:14] The position is equal.} 9. Rb1 {[%emt 0:00:21]} cxd4 {[%emt 0:05:10]} 10. cxd4 {[%emt 0:00:52] [#]} c5 {[%emt 0:01:53]} 11. dxc5 $14 {[%emt 0:06:54]} O-O {[%emt 0:07:02]} 12. Bf4 {[%emt 0:24:04]} Nb7 {[%emt 0:15:38]} 13. Qd4 {[%emt 0:17:25]} Re8 {[%emt 0:00:51] Black is weak on the dark squares} (13... Ne8 $11) 14. Ne2 {[%emt 0:21:01] White is much more active.} Qa5+ {[%emt 0:25:13]} 15. Nc3 $1 {[%emt 0:00:50]} a6 {[%emt 0:01:41] White now steadily converts the win.} 16. Be3 {[%emt 0:14:40]} Qxa3 {[%emt 0:00:36]} 17. e5 {[%emt 0:05:55]} Nd5 {[%emt 0:00:05]} 18. Nxd5 {[%emt 0:00:05]} exd5 {[%emt 0:00:03] [#]} 19. Kf2 $1 {[%emt 0:00:39]} Nd8 {[%emt 0:01:29]} 20. Qxd5 {[%emt 0:01:06]} Bb7 {[%emt 0:06:41]} (20... Nc6 $142) 21. Rxb7 $18 {[%emt 0:02:16]} Nxb7 {[%emt 0:00:04]} 22. Qxb7 {[%emt 0:00:12][%cal Of1e2]} Rab8 {[%emt 0:00:08]} 23. Qd5 {[%emt 0:01:46][%cal Of1e2] Threatens to win with Be2!} ({Resist} 23. Qxd7 Rxe5 24. Qd4 Rbe8) 23... Qb2+ {[%emt 0:19:43]} 24. Be2 {[%emt 0:00:51]} Rxe5 {[%emt 0:00:03]} 25. Qd4 {[%emt 0:00:21]} (25. Qxd7 $2 Rbe8 26. Qd4 Qxd4 27. Bxd4 Rxe2+ 28. Kg3 Rd2 $19) 25... a5 {[%emt 0:10:56] [#]} (25... Qxd4 {was worth a try.} 26. Bxd4 Rd5) 26. Rb1 $3 {[%emt 0:06:18][%mdl 512]} Qxb1 {[%emt 0:00:47]} 27. Qxe5 {[%emt 0:00:05]} Kh8 $2 {[%emt 0:05:45]} (27... Rf8 28. Bd4 Qg6) 28. Bd4 {[%emt 0:10:28][%csl Gd4][%cal Re5g7] White is clearly winning.} f6 {[%emt 0:06:59]} 29. Qd6 {[%emt 0:00:15]} Qb7 {[%emt 0:00:51] [#]} 30. Bxf6 $1 {[%emt 0:01:01][%mdl 512] aiming for Bc3. A strong pair of Bishops.} Re8 {[%emt 0:00:43]} 31. Bc3 {[%emt 0:00:46] Weighted Error Value: White=0.14 (very precise) /Black=0.43.  Mistake:       	---       	Black=5      Inaccurate:     	---       	Black=2      OK:         	White=10    	Black=8      Best:        	White=2     	Black=3      Strong:       	White=2     	---} 1-0

[Event "GCT Superbet Romania 2024"]
[Site "Bucharest"]
[Date "2024.07.02"]
[Round "6.2"]
[White "Praggnanandhaa R"]
[Black "Deac, Bogdan-Daniel"]
[Result "1/2-1/2"]
[ECO "E44"]
[WhiteElo "2747"]
[BlackElo "2680"]
[Annotator "TA"]
[PlyCount "77"]
[EventDate "2024.06.24"]
[EventType "tourn"]
[EventCountry "ROU"]
[SourceTitle "playchess.com"]
[Source "ChessBase"]
[SourceQuality "1"]
[TimeControl "7200+30"]

{[%evp 13,77,18,13,17,18,8,16,0,0,-1,-7,0,0,0,0,4,10,9,9,0,0,0,0,0,4,0,0,0,0,0,0,0,0,0,0,0,0,-24,-17,-12,-25,-17,-16,-31,-29,-29,-34,-47,-38,-38,-18,-18,-18,-18,-2,-8,-7,-8,0,-10,0,-8,-7,-7,0,-16]} 1. d4 {[%emt 0:00:45]} Nf6 {[%emt 0:00:02][%cal Bg8f6,Bf6e4,Be4d2][%mdl 32]} 2. c4 {[%emt 0:00:06]} e6 {[%emt 0:00:04]} 3. Nc3 {[%emt 0:00:07]} Bb4 {[%emt 0:00:08]} 4. e3 {[%emt 0:00:08]} b6 {[%emt 0:00:08]} 5. Nge2 {[%emt 0:01:11][%cal Bg1e2,Be2f4,Bf4d3,Bd3c1,Bc1d3][%mdl 32]} Ne4 {[%emt 0:00:59]} 6. Bd2 {[%emt 0:10:12]} Nxd2 {[%emt 0:03:19]} 7. Qxd2 {[%emt 0:00:43]} Bb7 {[%emt 0:01:54]} 8. a3 {[%emt 0:13:57]} Be7 {[%emt 0:00:51]} 9. d5 {[%emt 0:05:03]} a5 {[%emt 0:12:14] Black is weak on the light squares} 10. Nf4 {[%emt 0:04:31]} e5 {[%emt 0:08:54]} 11. Nd3 {[%emt 0:04:05]} d6 {[%emt 0:00:41]} 12. Be2 {[%emt 0:02:25]} Nd7 {[%emt 0:04:18]} 13. O-O {[%emt 0:00:23]} Ba6 {[%emt 0:00:07]} 14. Nc1 {[%emt 0:04:33]} Bc8 {[%emt 0:06:47]} 15. Bd1 {[%emt 0:09:56]} Nc5 {[%emt 0:01:05]} 16. Nd3 {[%emt 0:05:25]} O-O {[%emt 0:13:14]} 17. e4 {[%emt 0:07:28]} Bg5 {[%emt 0:16:19]} 18. Qe2 {[%emt 0:00:43]} g6 {[%emt 0:00:24]} 19. Rb1 {[%emt 0:06:35]} f5 {[%emt 0:02:57]} 20. Nxc5 {[%emt 0:02:14]} bxc5 {[%emt 0:00:47]} 21. b4 {[%emt 0:01:09]} cxb4 {[%emt 0:12:45]} 22. axb4 {[%emt 0:00:45]} fxe4 {[%emt 0:11:08]} 23. Nxe4 {[%emt 0:01:10]} axb4 {[%emt 0:00:40]} 24. Rxb4 {[%emt 0:00:09]} Bf5 {[%emt 0:00:04]} 25. Rb2 {[%emt 0:17:35]} Bc1 {[%emt 0:15:42][%cal Bg5c1,Bc1a3,Ba3c5][%mdl 32] This pair of bishops is nice.} 26. Rb1 {[%emt 0:01:17]} Bxe4 {[%emt 0:01:43]} 27. Qxe4 {[%emt 0:00:11]} Ba3 {[%emt 0:00:07]} 28. g3 {[%emt 0:07:31]} Bc5 {[%emt 0:01:04]} 29. Rb2 {[%emt 0:00:33] Wards off Ra2} Ra1 {[%emt 0:06:40]} 30. Bf3 {[%emt 0:04:51]} Qa8 {[%emt 0:05:31]} 31. Rc2 {[%emt 0:02:54]} Kg7 {[%emt 0:04:02]} 32. Rxa1 {[%emt 0:02:37] The position is equal.} Qxa1+ {[%emt 0:00:02]} 33. Kg2 {[%emt 0:00:01]} h5 {[%emt 0:01:27]} (33... Qb1 {simplifies} 34. Re2 Qxe4 35. Bxe4 Ra8) 34. Re2 {[%emt 0:03:59]} Qc3 {[%emt 0:00:23]} 35. Rc2 {[%emt 0:02:37]} Qa1 {[%emt 0:00:23]} 36. Re2 {[%emt 0:00:26]} Qc3 {[%emt 0:00:22]} 37. Rc2 {[%emt 0:00:03]} Qb3 {[%emt 0:00:16][%cal Of8f3] [#] Strongly threatening ...Rxf3!} 38. Rd2 {[%emt 0:00:11]} Qc3 {[%emt 0:01:21]} 39. Rc2 {[%emt 0:01:18] Weighted Error Value: White=0.03 (flawless) /Black=0.04 (flawless) .  OK:         	White=12    	Black=15     Best:        	White=1     	---} 1/2-1/2

[Event "GCT Superbet Romania 2024"]
[Site "Bucharest"]
[Date "2024.07.02"]
[Round "6.3"]
[White "Caruana, Fabiano"]
[Black "Nepomniachtchi, Ian"]
[Result "1/2-1/2"]
[ECO "D78"]
[WhiteElo "2805"]
[BlackElo "2770"]
[Annotator "TA"]
[PlyCount "38"]
[EventDate "2024.06.24"]
[EventType "tourn"]
[EventCountry "ROU"]
[SourceTitle "playchess.com"]
[Source "ChessBase"]
[SourceQuality "1"]
[TimeControl "7200+30"]

{[%evp 14,38,10,4,0,0,0,0,0,0,7,0,0,0,0,0,0,-9,17,0,0,0,16,0,0,0,0]} 1. Nf3 {[%emt 0:00:05]} d5 {[%emt 0:00:26]} 2. g3 {[%emt 0:00:10]} g6 {[%emt 0:00:22]} 3. Bg2 {[%emt 0:00:21]} Bg7 {[%emt 0:00:07]} 4. d4 {[%emt 0:00:23]} Nf6 {[%emt 0:00:06]} 5. O-O {[%emt 0:00:19]} O-O {[%emt 0:00:17]} 6. c4 {[%emt 0:00:38]} c6 {[%emt 0:00:42]} 7. Nbd2 {[%emt 0:05:07][%cal Bb1d2,Bd2b3,Bb3c5][%mdl 32]} a5 {[%emt 0:02:29]} 8. b3 {[%emt 0:01:34] The position is equal.} Ne4 {[%emt 0:00:21]} 9. Bb2 {[%emt 0:04:45]} a4 {[%emt 0:00:31]} 10. bxa4 {[%emt 0:01:05]} Nc5 {[%emt 0:00:32]} 11. a5 {[%emt 0:06:12]} Qxa5 {[%emt 0:01:33]} 12. Nb3 {[%emt 0:03:57]} Qb4 {[%emt 0:00:38]} 13. Nxc5 {[%emt 0:00:16] [#] Qd2 would now be deadly.} Qxb2 {[%emt 0:00:20]} 14. cxd5 {[%emt 0:01:04]} cxd5 {[%emt 0:09:09]} 15. a4 {[%emt 0:11:56]} Nd7 {[%emt 0:04:28]} 16. Rb1 {[%emt 0:03:01]} Qa2 {[%emt 0:00:59]} 17. Ra1 {[%emt 0:00:21]} Qb2 {[%emt 0:00:05]} 18. Rb1 {[%emt 0:00:03]} Qa2 {[%emt 0:00:06]} 19. Ra1 {[%emt 0:00:06]} Qb2 {[%emt 0:00:41] A rather calm draw.   Weighted Error Value: White=0.03 (flawless) /Black=0.03 (flawless) .  Inaccurate:     	---       	Black=1      OK:         	White=5     	Black=9} 1/2-1/2

[Event "GCT Superbet Romania 2024"]
[Site "Bucharest"]
[Date "2024.07.02"]
[Round "6.4"]
[White "Vachier-Lagrave, Maxime"]
[Black "Gukesh D"]
[Result "1/2-1/2"]
[ECO "C89"]
[WhiteElo "2732"]
[BlackElo "2763"]
[Annotator "TA"]
[PlyCount "119"]
[EventDate "2024.06.24"]
[EventType "tourn"]
[EventCountry "ROU"]
[SourceTitle "playchess.com"]
[Source "ChessBase"]
[SourceQuality "1"]
[TimeControl "7200+30"]

{[%evp 26,119,24,25,37,22,41,30,31,14,20,16,27,16,30,39,33,37,37,28,36,33,19,26,41,20,44,37,37,44,47,37,38,40,51,45,70,78,80,70,68,63,66,70,67,59,54,54,60,55,51,38,37,43,43,35,63,12,24,18,25,14,20,20,20,19,19,10,23,9,10,8,8,7,18,0,0,0,8,8,8,8,8,8,8,8,8,8,8,0,0,0,8,0,0,0]} 1. e4 {[%emt 0:00:03]} e5 {[%emt 0:00:05]} 2. Nf3 {[%emt 0:00:03]} Nc6 {[%emt 0:00:06]} 3. Bb5 {[%emt 0:00:03]} a6 {[%emt 0:00:06]} 4. Ba4 {[%emt 0:00:03]} Nf6 {[%emt 0:00:05]} 5. O-O {[%emt 0:00:04]} Be7 {[%emt 0:00:04]} 6. Re1 {[%emt 0:00:07]} b5 {[%emt 0:00:09]} 7. Bb3 {[%emt 0:00:04]} O-O {[%emt 0:00:08]} 8. c3 {[%emt 0:02:46]} d5 {[%emt 0:10:16]} 9. exd5 {[%emt 0:00:11]} Nxd5 {[%emt 0:00:06]} 10. Nxe5 {[%emt 0:00:07]} Nxe5 {[%emt 0:00:05]} 11. Rxe5 {[%emt 0:00:08]} c6 {[%emt 0:00:04]} 12. Re1 {[%emt 0:00:26]} Bd6 {[%emt 0:01:30]} 13. d3 {[%emt 0:00:38]} Bf5 {[%emt 0:03:09]} 14. Qf3 {[%emt 0:01:07][%csl LRd5,LRf5]} Qh4 {[%emt 0:01:20]} 15. g3 {[%emt 0:00:09]} (15. Bxd5 Bxh2+ (15... Bg4 16. g3 $15) 16. Kf1 Bg4 $17) 15... Qh3 {[%emt 0:00:05]} 16. Be3 {[%emt 0:00:32]} Bxd3 {[%emt 0:06:32] White has an edge.} 17. Nd2 {[%emt 0:00:49]} Qf5 {[%emt 0:02:45]} 18. a4 {[%emt 0:01:53]} (18. Qxf5 {simplifies} Bxf5 19. Bxd5 cxd5 20. Nb3) 18... Rfe8 {[%emt 0:44:27]} 19. Bd4 {[%emt 0:00:48]} Bf8 {[%emt 0:09:48]} (19... Qxf3 {simplifies} 20. Nxf3 h6 21. Be5 Bc5) 20. Rxe8 {[%emt 0:11:15]} Rxe8 {[%emt 0:00:05]} 21. Qxf5 {[%emt 0:00:09]} Bxf5 {[%emt 0:00:03]} 22. axb5 {[%emt 0:00:13]} axb5 {[%emt 0:00:05]} 23. Bxd5 {[%emt 0:00:53]} cxd5 {[%emt 0:00:07]} 24. b4 {[%emt 0:00:07]} Bd3 {[%emt 0:13:36][%cal Bf5d3,Bd3c4,Bc4d5][%mdl 32]} 25. Nf1 {[%emt 0:02:56]} g6 {[%emt 0:08:00]} 26. Ne3 {[%emt 0:01:42]} Bc4 {[%emt 0:00:13]} 27. f3 {[%emt 0:13:03]} Bh6 {[%emt 0:00:37]} 28. Kf2 {[%emt 0:01:38]} Bxe3+ {[%emt 0:00:26]} 29. Bxe3 $14 {[%emt 0:00:05][%mdl 4096] Endgame. KRB-KRB} d4 {[%emt 0:08:39]} 30. cxd4 {[%emt 0:01:03]} Bd5 {[%emt 0:01:28]} 31. Ra5 {[%emt 0:08:02]} Ra8 {[%emt 0:02:50]} 32. Rxb5 {[%emt 0:01:52]} Ra2+ {[%emt 0:00:06]} 33. Kg1 {[%emt 0:00:19]} Bxf3 {[%emt 0:00:21]} 34. d5 {[%emt 0:00:08] [#] aiming for Rb8+.} f6 {[%emt 0:10:23]} 35. Rb8+ {[%emt 0:05:53]} Kf7 {[%emt 0:00:06]} 36. Rb7+ {[%emt 0:00:07]} Ke8 {[%emt 0:01:44]} 37. Rxh7 {[%emt 0:00:33]} Bxd5 {[%emt 0:03:17]} 38. b5 {[%emt 0:01:35]} Re2 {[%emt 0:01:25]} 39. Ba7 {[%emt 0:06:05]} Rb2 {[%emt 0:01:02]} 40. b6 {[%emt 0:00:27]} g5 {[%emt 0:01:32]} 41. g4 {[%emt 0:09:42]} (41. h4 $14) 41... Bf7 {[%emt 0:01:40]} 42. Kf1 {[%emt 0:03:02]} Kf8 {[%emt 0:01:20]} 43. Rh6 {[%emt 0:02:57]} Ke7 {[%emt 0:00:49]} 44. Ke1 {[%emt 0:00:39]} Bd5 {[%emt 0:00:18]} 45. Kd1 {[%emt 0:00:59]} Be4 {[%emt 0:00:05]} 46. Rh3 {[%emt 0:03:56] Re3 is the strong threat.} Ke6 {[%emt 0:00:31]} 47. Rc3 {[%emt 0:01:45]} Ke5 {[%emt 0:01:26] The position is equal.} 48. h3 {[%emt 0:04:37]} Kd4 {[%emt 0:00:30]} 49. Rc1 {[%emt 0:01:58] And now b7+ would win.} Ke5 {[%emt 0:00:31]} 50. Ra1 {[%emt 0:03:25]} Rb3 {[%emt 0:00:45]} 51. Ra4 {[%emt 0:03:13]} Bd5 {[%emt 0:00:34]} (51... Rxh3 52. Bb8+ Kd5 53. Bc7) 52. Ra5 {[%emt 0:01:32]} Ke6 {[%emt 0:00:09]} 53. Kc2 {[%emt 0:00:30][%cal Oa5d5] Threatens to win with Rxd5!} Rxh3 {[%emt 0:00:48] [#]} 54. Rxd5 $1 {[%emt 0:00:12]} Kxd5 $11 {[%emt 0:00:02] KR-KB} 55. b7 {[%emt 0:00:07]} Rh8 {[%emt 0:00:14]} ({But not} 55... Rh2+ $6 56. Kd3 Rh3+ 57. Ke2 $16) 56. Kd3 {[%emt 0:00:04]} Rh3+ {[%emt 0:00:19]} 57. Be3 {[%emt 0:00:08]} Rh8 {[%emt 0:00:04]} 58. Ba7 {[%emt 0:00:04] Wards off Rb8} Rh3+ {[%emt 0:00:09]} 59. Be3 {[%emt 0:00:13]} Rh8 {[%emt 0:00:04]} 60. Ba7 {[%emt 0:00:17] Repels Rb8.   Weighted Error Value: White=0.06 (flawless) /Black=0.05 (flawless) .  Mistake:       	White=1     	---        Inaccurate:     	---       	Black=1      OK:         	White=20    	Black=22     Best:        	White=1     	Black=5} 1/2-1/2